[Event "Titled Tuesday Blitz March 01 Early 2022"]
[White "Aaditya Dhingra"]
[Black "Dziththauly, Ramadhan"]
[WhiteFideId "25678191"]
[BlackFideId "7105525"]
[WhiteElo "1789"]
[BlackElo "2593"]
[Result "1-0"]
[Round "05"]
[TimeControl "180+1"]
[Date "2022.03.01"]
[WhiteClock "0:00:58"]
[BlackClock "0:00:06"]

1. Nf3 {[%clk 0:03:00]}  c5 {[%clk 0:03:00]} 2. g3 {[%clk 0:02:56]}  d5 {[%clk 0:02:59]} 3. Bg2 {[%clk 0:02:56]}  Nc6 {[%clk 0:02:59]} 4. c4 {[%clk 0:02:55]}  d4 {[%clk 0:02:59]} 5. O-O {[%clk 0:02:55]}  e5 {[%clk 0:03:00]} 6. d3 {[%clk 0:02:53]}  Nf6 {[%clk 0:03:00]} 7. e3 {[%clk 0:02:53]}  Be7 {[%clk 0:02:59]} 8. exd4 {[%clk 0:02:53]}  exd4 {[%clk 0:03:00]} 9. Re1 {[%clk 0:02:51]}  O-O {[%clk 0:03:01]} 10. Bg5 {[%clk 0:02:50]}  h6 {[%clk 0:02:49]} 11. Bxf6 {[%clk 0:02:48]}  Bxf6 {[%clk 0:02:50]} 12. Nbd2 {[%clk 0:02:47]}  Bf5 {[%clk 0:02:48]} 13. Ne4 {[%clk 0:02:45]}  Be7 {[%clk 0:02:42]} 14. a3 {[%clk 0:02:39]}  Re8 {[%clk 0:02:40]} 15. Qd2 {[%clk 0:02:37]}  Qc7 {[%clk 0:02:38]} 16. h3 {[%clk 0:02:32]}  Rad8 {[%clk 0:02:31]} 17. g4 {[%clk 0:02:32]}  Bg6 {[%clk 0:02:30]} 18. Nh2 {[%clk 0:02:29]}  f5 {[%clk 0:02:27]} 19. gxf5 {[%clk 0:02:22]}  Bxf5 {[%clk 0:02:28]} 20. Ng3 {[%clk 0:02:21]}  Bg6 {[%clk 0:02:24]} 21. Bd5+ {[%clk 0:02:18]}  Kh7 {[%clk 0:02:23]} 22. Nf3 {[%clk 0:02:06]}  Bd6 {[%clk 0:02:21]} 23. Kg2 {[%clk 0:02:05]}  Bf4 {[%clk 0:02:19]} 24. Qc2 {[%clk 0:02:01]}  Ne5 {[%clk 0:02:19]} 25. Nxe5 {[%clk 0:01:57]}  Rxe5 {[%clk 0:02:18]} 26. Rxe5 {[%clk 0:01:48]}  Bxe5 {[%clk 0:02:19]} 27. Re1 {[%clk 0:01:45]}  Rf8 {[%clk 0:02:08]} 28. Qe2 {[%clk 0:01:41]}  Bxg3 {[%clk 0:01:29]} 29. fxg3 {[%clk 0:01:38]}  Re8 {[%clk 0:01:29]} 30. Qd2 {[%clk 0:01:23]}  Rxe1 {[%clk 0:01:28]} 31. Qxe1 {[%clk 0:01:24]}  Bxd3 {[%clk 0:01:26]} 32. Qe8 {[%clk 0:01:22]}  Bxc4 {[%clk 0:00:20]} 33. Bxc4 {[%clk 0:01:16]}  Qc6+ {[%clk 0:00:20]} 34. Qxc6 {[%clk 0:01:14]}  bxc6 {[%clk 0:00:21]} 35. Kf3 {[%clk 0:01:09]}  Kg6 {[%clk 0:00:21]} 36. Kf4 {[%clk 0:01:08]}  Kf6 {[%clk 0:00:21]} 37. h4 {[%clk 0:01:07]}  g5+ {[%clk 0:00:17]} 38. hxg5+ {[%clk 0:01:04]}  hxg5+ {[%clk 0:00:18]} 39. Ke4 {[%clk 0:01:05]}  a5 {[%clk 0:00:18]} 40. b3 {[%clk 0:01:04]}  Ke7 {[%clk 0:00:11]} 41. Kf5 {[%clk 0:01:02]}  Kd6 {[%clk 0:00:11]} 42. g4 {[%clk 0:01:02]}  d3 {[%clk 0:00:05]} 43. Bxd3 {[%clk 0:01:01]}  c4 {[%clk 0:00:05]} 44. Bxc4 {[%clk 0:01:00]}  Kc5 {[%clk 0:00:06]} 45. a4 {[%clk 0:00:58]} 1-0


[Site "https://www.chess.com"]

[Event "Titled Tuesday Blitz March 01 Early 2022"]
[White "Agasarov, Benik"]
[Black "Rangel, Daniel"]
[WhiteFideId "13314823"]
[BlackFideId "2124475"]
[WhiteElo "2582"]
[BlackElo "2187"]
[Result "0-1"]
[Round "05"]
[TimeControl "180+1"]
[Date "2022.03.01"]
[WhiteClock "0:00:11"]
[BlackClock "0:00:16"]

1. e4 {[%clk 0:02:52]}  c6 {[%clk 0:03:00]} 2. d4 {[%clk 0:02:48]}  d5 {[%clk 0:02:59]} 3. Nc3 {[%clk 0:02:44]}  dxe4 {[%clk 0:02:59]} 4. Nxe4 {[%clk 0:02:43]}  Nf6 {[%clk 0:03:00]} 5. Bd3 {[%clk 0:02:39]}  Nbd7 {[%clk 0:02:52]} 6. Qe2 {[%clk 0:02:38]}  Nxe4 {[%clk 0:02:51]} 7. Qxe4 {[%clk 0:02:35]}  Nf6 {[%clk 0:02:52]} 8. Qe3 {[%clk 0:02:35]}  g6 {[%clk 0:02:44]} 9. Nf3 {[%clk 0:02:35]}  Bg7 {[%clk 0:02:45]} 10. O-O {[%clk 0:02:34]}  O-O {[%clk 0:02:45]} 11. h3 {[%clk 0:02:35]}  Be6 {[%clk 0:02:43]} 12. Re1 {[%clk 0:02:34]}  Qd7 {[%clk 0:02:15]} 13. Ne5 {[%clk 0:02:32]}  Qc7 {[%clk 0:02:13]} 14. c3 {[%clk 0:02:32]}  Rac8 {[%clk 0:02:10]} 15. Qg3 {[%clk 0:02:30]}  c5 {[%clk 0:02:08]} 16. Be3 {[%clk 0:02:27]}  Nd5 {[%clk 0:02:07]} 17. Rad1 {[%clk 0:02:20]}  Nxe3 {[%clk 0:02:06]} 18. Rxe3 {[%clk 0:02:19]}  cxd4 {[%clk 0:02:06]} 19. cxd4 {[%clk 0:02:19]}  Bxa2 {[%clk 0:02:01]} 20. Ra1 {[%clk 0:02:13]}  Bd5 {[%clk 0:01:55]} 21. Rxa7 {[%clk 0:02:09]}  e6 {[%clk 0:01:51]} 22. Ra1 {[%clk 0:02:06]}  Rfd8 {[%clk 0:01:45]} 23. h4 {[%clk 0:01:58]}  Qb6 {[%clk 0:01:44]} 24. h5 {[%clk 0:01:52]}  Qxd4 {[%clk 0:01:39]} 25. hxg6 {[%clk 0:01:49]}  hxg6 {[%clk 0:01:38]} 26. Nxf7 {[%clk 0:01:48]}  Kxf7 {[%clk 0:01:34]} 27. Qxg6+ {[%clk 0:01:48]}  Kf8 {[%clk 0:01:34]} 28. Rae1 {[%clk 0:01:45]}  Qf6 {[%clk 0:01:30]} 29. Qg4 {[%clk 0:01:41]}  Bh6 {[%clk 0:01:02]} 30. Rg3 {[%clk 0:01:29]}  Ke7 {[%clk 0:00:54]} 31. Qb4+ {[%clk 0:01:22]}  Rd6 {[%clk 0:00:46]} 32. Rg6 {[%clk 0:01:20]}  Qf4 {[%clk 0:00:42]} 33. Qa3 {[%clk 0:00:44]}  Rc1 {[%clk 0:00:33]} 34. Qa5 {[%clk 0:00:22]}  Rxe1+ {[%clk 0:00:32]} 35. Qxe1 {[%clk 0:00:21]}  Qc1 {[%clk 0:00:32]} 36. Qxc1 {[%clk 0:00:19]}  Bxc1 {[%clk 0:00:32]} 37. b4 {[%clk 0:00:20]}  Ba3 {[%clk 0:00:26]} 38. b5 {[%clk 0:00:19]}  Bc5 {[%clk 0:00:26]} 39. Rh6 {[%clk 0:00:18]}  Bxg2 {[%clk 0:00:20]} 40. Rh7+ {[%clk 0:00:17]}  Kf6 {[%clk 0:00:20]} 41. Kxg2 {[%clk 0:00:17]}  Rxd3 {[%clk 0:00:20]} 42. Rxb7 {[%clk 0:00:18]}  Rd2 {[%clk 0:00:20]} 43. Rc7 {[%clk 0:00:16]}  Bxf2 {[%clk 0:00:17]} 44. Rc8 {[%clk 0:00:15]}  Bd4+ {[%clk 0:00:16]} 45. Kf3 {[%clk 0:00:14]}  Ke5 {[%clk 0:00:15]} 46. Rc6 {[%clk 0:00:13]}  Rb2 {[%clk 0:00:15]} 47. Rc1 {[%clk 0:00:08]}  Rb3+ {[%clk 0:00:16]} 48. Ke2 {[%clk 0:00:06]}  Rxb5 {[%clk 0:00:16]} 49. Kd3 {[%clk 0:00:06]}  Rb3+ {[%clk 0:00:16]} 50. Kc4 {[%clk 0:00:07]}  Rc3+ {[%clk 0:00:16]} 51. Rxc3 {[%clk 0:00:07]}  Bxc3 {[%clk 0:00:17]} 52. Kxc3 {[%clk 0:00:08]}  Kf4 {[%clk 0:00:16]} 53. Kd2 {[%clk 0:00:09]}  Kf3 {[%clk 0:00:16]} 54. Ke1 {[%clk 0:00:08]}  e5 {[%clk 0:00:16]} 55. Kf1 {[%clk 0:00:07]}  e4 {[%clk 0:00:15]} 56. Ke1 {[%clk 0:00:08]}  Ke3 {[%clk 0:00:15]} 57. Kf1 {[%clk 0:00:08]}  Kd2 {[%clk 0:00:15]} 58. Kf2 {[%clk 0:00:08]}  e3+ {[%clk 0:00:16]} 59. Kg2 {[%clk 0:00:08]}  e2 {[%clk 0:00:17]} 60. Kh2 {[%clk 0:00:08]}  e1=Q {[%clk 0:00:18]} 61. Kg2 {[%clk 0:00:08]}  Qe5 {[%clk 0:00:17]} 62. Kh1 {[%clk 0:00:09]}  Qg5 {[%clk 0:00:16]} 63. Kh2 {[%clk 0:00:09]}  Ke2 {[%clk 0:00:17]} 64. Kh3 {[%clk 0:00:10]}  Kf1 {[%clk 0:00:16]} 65. Kh2 {[%clk 0:00:11]}  Qh4# {[%clk 0:00:16]} 0-1


[Site "https://www.chess.com"]

[Event "Titled Tuesday Blitz March 01 Early 2022"]
[White "Agibileg, Uurtsaikh"]
[Black "Siva Mahadevan"]
[WhiteFideId "4901606"]
[BlackFideId "25043153"]
[WhiteElo "2205"]
[BlackElo "2203"]
[Result "1-0"]
[Round "05"]
[TimeControl "180+1"]
[Date "2022.03.01"]
[WhiteClock "0:01:07"]
[BlackClock "0:00:03"]

1. d4 {[%clk 0:03:00]}  Nf6 {[%clk 0:02:58]} 2. c4 {[%clk 0:03:00]}  g6 {[%clk 0:02:58]} 3. Nc3 {[%clk 0:03:01]}  Bg7 {[%clk 0:02:59]} 4. e4 {[%clk 0:02:59]}  O-O {[%clk 0:03:00]} 5. Be2 {[%clk 0:02:59]}  d6 {[%clk 0:03:00]} 6. Nf3 {[%clk 0:02:59]}  Nbd7 {[%clk 0:02:58]} 7. O-O {[%clk 0:02:59]}  e5 {[%clk 0:02:58]} 8. Be3 {[%clk 0:02:58]}  c6 {[%clk 0:02:21]} 9. d5 {[%clk 0:02:56]}  c5 {[%clk 0:02:19]} 10. Ne1 {[%clk 0:02:56]}  Ne8 {[%clk 0:02:15]} 11. g4 {[%clk 0:02:54]}  Bf6 {[%clk 0:02:03]} 12. Nf3 {[%clk 0:02:47]}  Ng7 {[%clk 0:02:00]} 13. Kh1 {[%clk 0:02:44]}  Be7 {[%clk 0:01:59]} 14. Bh6 {[%clk 0:02:41]}  Kh8 {[%clk 0:01:58]} 15. a3 {[%clk 0:02:28]}  Nf6 {[%clk 0:01:55]} 16. Nd2 {[%clk 0:02:12]}  Ng8 {[%clk 0:01:54]} 17. Be3 {[%clk 0:02:12]}  Bg5 {[%clk 0:01:40]} 18. b4 {[%clk 0:02:08]}  b6 {[%clk 0:01:36]} 19. Qa4 {[%clk 0:02:03]}  Bxe3 {[%clk 0:01:29]} 20. fxe3 {[%clk 0:02:04]}  Qg5 {[%clk 0:01:30]} 21. Qc6 {[%clk 0:01:55]}  Qxe3 {[%clk 0:00:24]} 22. Qxa8 {[%clk 0:01:46]}  Qxd2 {[%clk 0:00:16]} 23. Rac1 {[%clk 0:01:39]}  Re8 {[%clk 0:00:16]} 24. Qc6 {[%clk 0:01:37]}  Qg5 {[%clk 0:00:11]} 25. Qxd6 {[%clk 0:01:34]}  Bxg4 {[%clk 0:00:08]} 26. Bxg4 {[%clk 0:01:32]}  Qxg4 {[%clk 0:00:08]} 27. Rxf7 {[%clk 0:01:33]}  Qh3 {[%clk 0:00:06]} 28. Qd7 {[%clk 0:01:25]}  Qh6 {[%clk 0:00:06]} 29. Rcf1 {[%clk 0:01:22]}  Ra8 {[%clk 0:00:06]} 30. d6 {[%clk 0:01:20]}  Nh5 {[%clk 0:00:04]} 31. Qg4 {[%clk 0:01:12]}  Nf4 {[%clk 0:00:04]} 32. Nd5 {[%clk 0:01:10]}  Rd8 {[%clk 0:00:02]} 33. Nxf4 {[%clk 0:01:07]}  exf4 {[%clk 0:00:03]} 34. e5 {[%clk 0:01:07]} 1-0


[Site "https://www.chess.com"]

[Event "Titled Tuesday Blitz March 01 Early 2022"]
[White "Ahmadzada, Ahmad"]
[Black "Krishnan, Varun"]
[WhiteFideId "13413007"]
[BlackFideId "5054508"]
[WhiteElo "2228"]
[BlackElo "2588"]
[Result "1-0"]
[Round "05"]
[TimeControl "180+1"]
[Date "2022.03.01"]
[WhiteClock "0:00:06"]
[BlackClock "0:00:02"]

1. Nf3 {[%clk 0:03:00]}  d5 {[%clk 0:02:54]} 2. c4 {[%clk 0:02:58]}  e6 {[%clk 0:02:53]} 3. g3 {[%clk 0:02:58]}  Nf6 {[%clk 0:02:52]} 4. Bg2 {[%clk 0:02:58]}  Be7 {[%clk 0:02:52]} 5. O-O {[%clk 0:02:58]}  O-O {[%clk 0:02:52]} 6. Qc2 {[%clk 0:02:55]}  a5 {[%clk 0:02:51]} 7. d4 {[%clk 0:02:54]}  b6 {[%clk 0:02:46]} 8. Nbd2 {[%clk 0:02:53]}  Bb7 {[%clk 0:02:45]} 9. b3 {[%clk 0:02:45]}  a4 {[%clk 0:02:34]} 10. Bb2 {[%clk 0:02:44]}  a3 {[%clk 0:02:25]} 11. Bc3 {[%clk 0:02:43]}  Nc6 {[%clk 0:02:17]} 12. e4 {[%clk 0:02:27]}  Nb4 {[%clk 0:01:58]} 13. Bxb4 {[%clk 0:02:26]}  Bxb4 {[%clk 0:01:59]} 14. e5 {[%clk 0:02:01]}  Ne4 {[%clk 0:01:54]} 15. Rad1 {[%clk 0:01:30]}  Nc3 {[%clk 0:01:43]} 16. Rde1 {[%clk 0:01:29]}  c5 {[%clk 0:01:30]} 17. Re3 {[%clk 0:00:52]}  Ne4 {[%clk 0:01:29]} 18. dxc5 {[%clk 0:00:30]}  Bxc5 {[%clk 0:01:20]} 19. Re2 {[%clk 0:00:29]}  h6 {[%clk 0:01:10]} 20. Nxe4 {[%clk 0:00:26]}  dxe4 {[%clk 0:01:10]} 21. Nd2 {[%clk 0:00:26]}  Qd3 {[%clk 0:01:02]} 22. Nxe4 {[%clk 0:00:21]}  Qxc2 {[%clk 0:00:58]} 23. Rxc2 {[%clk 0:00:21]}  Rad8 {[%clk 0:00:46]} 24. Nxc5 {[%clk 0:00:15]}  Bxg2 {[%clk 0:00:45]} 25. Kxg2 {[%clk 0:00:12]}  bxc5 {[%clk 0:00:44]} 26. f4 {[%clk 0:00:12]}  Rd3 {[%clk 0:00:42]} 27. Rf3 {[%clk 0:00:12]}  Rfd8 {[%clk 0:00:41]} 28. Rxd3 {[%clk 0:00:12]}  Rxd3 {[%clk 0:00:41]} 29. Kf2 {[%clk 0:00:12]}  Kf8 {[%clk 0:00:37]} 30. Ke2 {[%clk 0:00:12]}  Rd4 {[%clk 0:00:34]} 31. Rd2 {[%clk 0:00:12]}  Re4+ {[%clk 0:00:29]} 32. Kf3 {[%clk 0:00:11]}  Re1 {[%clk 0:00:29]} 33. Rd8+ {[%clk 0:00:11]}  Ke7 {[%clk 0:00:28]} 34. Ra8 {[%clk 0:00:12]}  Rh1 {[%clk 0:00:27]} 35. Kg2 {[%clk 0:00:12]}  Rc1 {[%clk 0:00:26]} 36. Rxa3 {[%clk 0:00:12]}  Rc2+ {[%clk 0:00:25]} 37. Kf3 {[%clk 0:00:12]}  Rxh2 {[%clk 0:00:23]} 38. Ra7+ {[%clk 0:00:12]}  Ke8 {[%clk 0:00:23]} 39. a4 {[%clk 0:00:08]}  Rb2 {[%clk 0:00:22]} 40. Rb7 {[%clk 0:00:09]}  f5 {[%clk 0:00:21]} 41. exf6 {[%clk 0:00:06]}  gxf6 {[%clk 0:00:20]} 42. a5 {[%clk 0:00:06]}  Ra2 {[%clk 0:00:20]} 43. Ke4 {[%clk 0:00:06]}  Rxa5 {[%clk 0:00:19]} 44. f5 {[%clk 0:00:06]}  Ra6 {[%clk 0:00:18]} 45. fxe6 {[%clk 0:00:05]}  Rxe6+ {[%clk 0:00:18]} 46. Kd5 {[%clk 0:00:05]}  Re3 {[%clk 0:00:18]} 47. Kxc5 {[%clk 0:00:05]}  Rxg3 {[%clk 0:00:18]} 48. b4 {[%clk 0:00:06]}  h5 {[%clk 0:00:18]} 49. Rh7 {[%clk 0:00:05]}  Rg5+ {[%clk 0:00:14]} 50. Kc6 {[%clk 0:00:05]}  Rg4 {[%clk 0:00:14]} 51. Kb5 {[%clk 0:00:02]}  h4 {[%clk 0:00:10]} 52. c5 {[%clk 0:00:03]}  Kd8 {[%clk 0:00:09]} 53. c6 {[%clk 0:00:03]}  Kc8 {[%clk 0:00:06]} 54. Kc5 {[%clk 0:00:03]}  f5 {[%clk 0:00:03]} 55. b5 {[%clk 0:00:04]}  f4 {[%clk 0:00:03]} 56. Kb6 {[%clk 0:00:04]}  Kd8 {[%clk 0:00:02]} 57. c7+ {[%clk 0:00:04]}  Kc8 {[%clk 0:00:01]} 58. Rh8+ {[%clk 0:00:05]}  Kd7 {[%clk 0:00:02]} 59. c8=Q+ {[%clk 0:00:06]}  Kd6 {[%clk 0:00:02]} 60. Qxg4 {[%clk 0:00:06]} 1-0


[Site "https://www.chess.com"]

[Event "Titled Tuesday Blitz March 01 Early 2022"]
[White "Artemenko, Oleg"]
[Black "Karabalis, Harilos"]
[WhiteFideId "14201798"]
[BlackFideId "4621808"]
[WhiteElo "2287"]
[BlackElo "2168"]
[Result "1-0"]
[Round "05"]
[TimeControl "180+1"]
[Date "2022.03.01"]
[WhiteClock "0:00:04"]
[BlackClock "0:00:08"]

1. d4 {[%clk 0:03:00]}  Nf6 {[%clk 0:02:59]} 2. Nc3 {[%clk 0:03:00]}  d5 {[%clk 0:02:56]} 3. Bf4 {[%clk 0:03:00]}  a6 {[%clk 0:02:56]} 4. e3 {[%clk 0:02:59]}  Bf5 {[%clk 0:02:55]} 5. f3 {[%clk 0:02:59]}  e6 {[%clk 0:02:55]} 6. g4 {[%clk 0:02:59]}  Bg6 {[%clk 0:02:55]} 7. h4 {[%clk 0:02:59]}  h6 {[%clk 0:02:54]} 8. Bd3 {[%clk 0:02:59]}  Bxd3 {[%clk 0:02:51]} 9. Qxd3 {[%clk 0:03:00]}  c5 {[%clk 0:02:48]} 10. Nge2 {[%clk 0:02:58]}  Nc6 {[%clk 0:02:47]} 11. O-O-O {[%clk 0:02:58]}  Bd6 {[%clk 0:02:44]} 12. g5 {[%clk 0:02:55]}  Nh5 {[%clk 0:02:37]} 13. g6 {[%clk 0:02:52]}  f5 {[%clk 0:02:27]} 14. Bxd6 {[%clk 0:02:47]}  Qxd6 {[%clk 0:02:26]} 15. e4 {[%clk 0:02:41]}  fxe4 {[%clk 0:02:24]} 16. fxe4 {[%clk 0:02:38]}  Nf4 {[%clk 0:02:06]} 17. Qe3 {[%clk 0:02:27]}  Nxe2+ {[%clk 0:02:03]} 18. Nxe2 {[%clk 0:02:23]}  cxd4 {[%clk 0:01:55]} 19. Nxd4 {[%clk 0:02:18]}  O-O-O {[%clk 0:01:45]} 20. Nxc6 {[%clk 0:01:57]}  Qxc6 {[%clk 0:01:44]} 21. exd5 {[%clk 0:01:54]}  Rxd5 {[%clk 0:01:39]} 22. Rxd5 {[%clk 0:01:52]}  exd5 {[%clk 0:01:39]} 23. h5 {[%clk 0:01:48]}  d4 {[%clk 0:01:31]} 24. Qh3+ {[%clk 0:01:45]}  Kb8 {[%clk 0:01:31]} 25. Rd1 {[%clk 0:01:44]}  Rd8 {[%clk 0:01:27]} 26. Qf5 {[%clk 0:01:38]}  Ka7 {[%clk 0:01:21]} 27. Qe5 {[%clk 0:01:36]}  Rd7 {[%clk 0:01:19]} 28. Kb1 {[%clk 0:01:26]}  Qd5 {[%clk 0:01:13]} 29. Re1 {[%clk 0:01:17]}  Qc6 {[%clk 0:00:58]} 30. a3 {[%clk 0:01:10]}  d3 {[%clk 0:00:56]} 31. Qe3+ {[%clk 0:01:07]}  Qb6 {[%clk 0:00:56]} 32. cxd3 {[%clk 0:01:06]}  Rd4 {[%clk 0:00:55]} 33. Rc1 {[%clk 0:00:56]}  Rd5 {[%clk 0:00:51]} 34. Qxb6+ {[%clk 0:00:32]}  Kxb6 {[%clk 0:00:51]} 35. Rc8 {[%clk 0:00:32]}  Rxh5 {[%clk 0:00:50]} 36. Rg8 {[%clk 0:00:32]}  Rd5 {[%clk 0:00:47]} 37. Rxg7 {[%clk 0:00:26]}  Rxd3 {[%clk 0:00:47]} 38. Rh7 {[%clk 0:00:25]}  Rh3 {[%clk 0:00:47]} 39. g7 {[%clk 0:00:25]}  Rg3 {[%clk 0:00:47]} 40. Rxh6+ {[%clk 0:00:25]}  Ka5 {[%clk 0:00:31]} 41. Rh7 {[%clk 0:00:22]}  b5 {[%clk 0:00:29]} 42. Ka2 {[%clk 0:00:20]}  Kb6 {[%clk 0:00:27]} 43. b4 {[%clk 0:00:19]}  Kc6 {[%clk 0:00:26]} 44. Kb2 {[%clk 0:00:18]}  Kd5 {[%clk 0:00:25]} 45. Kc2 {[%clk 0:00:18]}  Kc4 {[%clk 0:00:25]} 46. Kd2 {[%clk 0:00:18]}  Kb3 {[%clk 0:00:23]} 47. Rh3 {[%clk 0:00:17]}  Rxh3 {[%clk 0:00:23]} 48. g8=Q+ {[%clk 0:00:18]}  Kxa3 {[%clk 0:00:23]} 49. Kc2 {[%clk 0:00:14]}  Rh2+ {[%clk 0:00:20]} 50. Kc3 {[%clk 0:00:12]}  Rh3+ {[%clk 0:00:20]} 51. Kd4 {[%clk 0:00:12]}  Rh4+ {[%clk 0:00:16]} 52. Kc5 {[%clk 0:00:11]}  Rc4+ {[%clk 0:00:16]} 53. Kb6 {[%clk 0:00:12]}  Rxb4 {[%clk 0:00:17]} 54. Qf8 {[%clk 0:00:12]}  Ka4 {[%clk 0:00:15]} 55. Kxa6 {[%clk 0:00:12]}  Rc4 {[%clk 0:00:15]} 56. Qe8 {[%clk 0:00:11]}  Rc5 {[%clk 0:00:14]} 57. Qd7 {[%clk 0:00:11]}  Kb3 {[%clk 0:00:12]} 58. Ka5 {[%clk 0:00:10]}  b4+ {[%clk 0:00:10]} 59. Kb6 {[%clk 0:00:10]}  Rc3 {[%clk 0:00:10]} 60. Kb5 {[%clk 0:00:10]}  Ka3 {[%clk 0:00:10]} 61. Qd6 {[%clk 0:00:10]}  Rb3 {[%clk 0:00:09]} 62. Qc5 {[%clk 0:00:10]}  Rb2 {[%clk 0:00:09]} 63. Qa7+ {[%clk 0:00:08]}  Kb3 {[%clk 0:00:10]} 64. Qe3+ {[%clk 0:00:07]}  Ka2 {[%clk 0:00:10]} 65. Ka4 {[%clk 0:00:07]}  b3 {[%clk 0:00:09]} 66. Qc3 {[%clk 0:00:08]}  Rb1 {[%clk 0:00:09]} 67. Kb4 {[%clk 0:00:08]}  Rb2 {[%clk 0:00:09]} 68. Qc1 {[%clk 0:00:08]}  Rc2 {[%clk 0:00:09]} 69. Qa3+ {[%clk 0:00:08]}  Kb1 {[%clk 0:00:09]} 70. Qa8 {[%clk 0:00:06]}  b2 {[%clk 0:00:08]} 71. Kb3 {[%clk 0:00:04]} 1-0


[Site "https://www.chess.com"]

[Event "Titled Tuesday Blitz March 01 Early 2022"]
[White "Bintang, Rasyid A. Hidayat"]
[Black "Bethke, Richard"]
[WhiteFideId "7105355"]
[BlackFideId "12959243"]
[WhiteElo "2354"]
[BlackElo "2519"]
[Result "1-0"]
[Round "05"]
[TimeControl "180+1"]
[Date "2022.03.01"]
[WhiteClock "0:00:11"]
[BlackClock "0:00:03"]

1. d4 {[%clk 0:03:00]}  Nf6 {[%clk 0:02:59]} 2. Bf4 {[%clk 0:03:00]}  d5 {[%clk 0:02:59]} 3. e3 {[%clk 0:03:00]}  c5 {[%clk 0:02:59]} 4. Nd2 {[%clk 0:02:52]}  Nc6 {[%clk 0:02:59]} 5. Ngf3 {[%clk 0:02:37]}  e6 {[%clk 0:02:47]} 6. c3 {[%clk 0:02:36]}  Bd6 {[%clk 0:02:46]} 7. Bg3 {[%clk 0:02:34]}  O-O {[%clk 0:02:19]} 8. Bd3 {[%clk 0:02:29]}  b6 {[%clk 0:02:19]} 9. e4 {[%clk 0:02:27]}  Be7 {[%clk 0:02:18]} 10. e5 {[%clk 0:02:25]}  Nd7 {[%clk 0:02:15]} 11. h4 {[%clk 0:02:15]}  cxd4 {[%clk 0:02:15]} 12. cxd4 {[%clk 0:02:14]}  Nb4 {[%clk 0:02:12]} 13. Bxh7+ {[%clk 0:02:00]}  Kxh7 {[%clk 0:02:13]} 14. Ng5+ {[%clk 0:01:59]}  Kg6 {[%clk 0:02:05]} 15. Qb1+ {[%clk 0:01:57]}  f5 {[%clk 0:02:04]} 16. exf6+ {[%clk 0:01:55]}  Kxf6 {[%clk 0:02:05]} 17. Nh7+ {[%clk 0:01:31]}  Kf7 {[%clk 0:02:04]} 18. Nxf8 {[%clk 0:01:27]}  Nxf8 {[%clk 0:02:04]} 19. a3 {[%clk 0:01:26]}  Nc6 {[%clk 0:02:03]} 20. Nf3 {[%clk 0:01:25]}  Bf6 {[%clk 0:02:02]} 21. Ne5+ {[%clk 0:01:19]}  Bxe5 {[%clk 0:02:00]} 22. dxe5 {[%clk 0:01:19]}  Ba6 {[%clk 0:02:00]} 23. b4 {[%clk 0:01:12]}  Nd4 {[%clk 0:01:40]} 24. h5 {[%clk 0:00:49]}  Rc8 {[%clk 0:01:31]} 25. Ra2 {[%clk 0:00:47]}  Qc7 {[%clk 0:01:28]} 26. Rh4 {[%clk 0:00:37]}  Qc1+ {[%clk 0:01:03]} 27. Qxc1 {[%clk 0:00:35]}  Rxc1+ {[%clk 0:01:04]} 28. Kd2 {[%clk 0:00:32]}  Nb3+ {[%clk 0:01:05]} 29. Ke3 {[%clk 0:00:32]}  Re1+ {[%clk 0:01:06]} 30. Kf3 {[%clk 0:00:27]}  Nd4+ {[%clk 0:01:05]} 31. Rxd4 {[%clk 0:00:27]}  Nh7 {[%clk 0:01:03]} 32. Bf4 {[%clk 0:00:27]}  Bc4 {[%clk 0:00:59]} 33. Rc2 {[%clk 0:00:26]}  g6 {[%clk 0:00:58]} 34. hxg6+ {[%clk 0:00:26]}  Kxg6 {[%clk 0:00:59]} 35. a4 {[%clk 0:00:21]}  Rb1 {[%clk 0:00:57]} 36. Rcxc4 {[%clk 0:00:20]}  dxc4 {[%clk 0:00:56]} 37. Rxc4 {[%clk 0:00:21]}  Nf8 {[%clk 0:00:53]} 38. Rc8 {[%clk 0:00:21]}  Rb3+ {[%clk 0:00:47]} 39. Kg4 {[%clk 0:00:21]}  Nh7 {[%clk 0:00:44]} 40. Rc4 {[%clk 0:00:18]}  Nf8 {[%clk 0:00:38]} 41. a5 {[%clk 0:00:18]}  b5 {[%clk 0:00:37]} 42. Rc8 {[%clk 0:00:16]}  Nh7 {[%clk 0:00:37]} 43. Bd2 {[%clk 0:00:15]}  Rd3 {[%clk 0:00:35]} 44. Bc3 {[%clk 0:00:14]}  Ng5 {[%clk 0:00:31]} 45. f4 {[%clk 0:00:14]}  Ne4 {[%clk 0:00:30]} 46. Be1 {[%clk 0:00:14]}  Re3 {[%clk 0:00:28]} 47. Bh4 {[%clk 0:00:14]}  Rb3 {[%clk 0:00:21]} 48. Rg8+ {[%clk 0:00:12]}  Kf7 {[%clk 0:00:21]} 49. Ra8 {[%clk 0:00:12]}  Rxb4 {[%clk 0:00:21]} 50. Rxa7+ {[%clk 0:00:12]}  Kg6 {[%clk 0:00:22]} 51. Ra6 {[%clk 0:00:11]}  Nc5 {[%clk 0:00:22]} 52. Rc6 {[%clk 0:00:11]}  Nd3 {[%clk 0:00:22]} 53. Rxe6+ {[%clk 0:00:11]}  Kf7 {[%clk 0:00:22]} 54. Re7+ {[%clk 0:00:11]}  Kf8 {[%clk 0:00:22]} 55. Rb7 {[%clk 0:00:11]}  Rxf4+ {[%clk 0:00:17]} 56. Kg3 {[%clk 0:00:11]}  Re4 {[%clk 0:00:12]} 57. a6 {[%clk 0:00:11]}  Ra4 {[%clk 0:00:12]} 58. a7 {[%clk 0:00:11]}  Nxe5 {[%clk 0:00:08]} 59. Rb8+ {[%clk 0:00:11]}  Kf7 {[%clk 0:00:08]} 60. a8=Q {[%clk 0:00:11]}  Rxa8 {[%clk 0:00:09]} 61. Rxa8 {[%clk 0:00:12]}  Nc6 {[%clk 0:00:09]} 62. Ra1 {[%clk 0:00:11]}  Nd4 {[%clk 0:00:09]} 63. Rb1 {[%clk 0:00:11]}  b4 {[%clk 0:00:09]} 64. Kf4 {[%clk 0:00:11]}  Ne2+ {[%clk 0:00:09]} 65. Ke3 {[%clk 0:00:11]}  Nc3 {[%clk 0:00:09]} 66. Rb3 {[%clk 0:00:10]}  Nd5+ {[%clk 0:00:07]} 67. Kd4 {[%clk 0:00:10]}  Ke6 {[%clk 0:00:08]} 68. g4 {[%clk 0:00:10]}  Kd6 {[%clk 0:00:07]} 69. Bg3+ {[%clk 0:00:09]}  Kc6 {[%clk 0:00:07]} 70. Be1 {[%clk 0:00:09]}  Nf6 {[%clk 0:00:04]} 71. g5 {[%clk 0:00:09]}  Nd5 {[%clk 0:00:03]} 72. g6 {[%clk 0:00:10]}  Ne7 {[%clk 0:00:03]} 73. g7 {[%clk 0:00:10]}  Nf5+ {[%clk 0:00:03]} 74. Ke5 {[%clk 0:00:10]}  Nxg7 {[%clk 0:00:04]} 75. Bxb4 {[%clk 0:00:11]}  Ne8 {[%clk 0:00:04]} 76. Rc3+ {[%clk 0:00:11]}  Kd7 {[%clk 0:00:05]} 77. Rd3+ {[%clk 0:00:11]}  Kc6 {[%clk 0:00:04]} 78. Bd6 {[%clk 0:00:11]}  Ng7 {[%clk 0:00:04]} 79. Rc3+ {[%clk 0:00:11]}  Kb6 {[%clk 0:00:04]} 80. Kf6 {[%clk 0:00:11]}  Nh5+ {[%clk 0:00:03]} 81. Kg5 {[%clk 0:00:12]}  Ng7 {[%clk 0:00:03]} 82. Re3 {[%clk 0:00:11]}  Kc6 {[%clk 0:00:03]} 83. Bf8 {[%clk 0:00:11]} 1-0


[Site "https://www.chess.com"]